bitfinex-derivatives/quotes_SOLF0:USTF0_20250425
["timestamp","ask_amount","ask_price","bid_price","bid_amount"]
[1745586751056,10.96960699,153.22,153.18,3.9501]
[1745586751356,17.49350699,153.22,153.18,10.4753]
[1745586751657,6.5239,153.22,153.18,14.91970699]
[1745586751851,6.5239,153.22,153.18,21.44490699]
[1745586752053,17.49350699,153.22,153.18,21.44490699]
[1745586752752,10.96960699,153.22,153.18,21.44490699]
[1745586752953,10.96960699,153.22,153.19,6.525]
[1745586753562,10.96960699,153.22,153.18,10.4755]
[1745586753859,10.96960699,153.22,153.18,6.5254]
[1745586754059,10.96960699,153.22,153.17,10.96960699]
[1745586754763,17.49360699,153.22,153.19,6.5248]
[1745586754951,37.68960699,153.23,153.18,10.96960699]
[1745586756260,6.5238,153.22,153.18,10.96960699]
[1745586756861,44.21310699,153.23,153.2,6.5246]
[1745586757057,37.68960699,153.23,153.18,10.96960699]
[1745586757362,10.96960699,153.22,153.14,3.7985]
[1745586757563,17.49400699,153.21,153.17,10.96960699]
[1745586757758,6.5244,153.21,153.17,10.96960699]
[1745586757958,6.5244,153.21,153.18,6.5254]
[1745586758163,17.49350699,153.22,153.17,10.96960699]
[1745586758363,10.96960699,153.22,153.17,10.96960699]
[1745586758558,10.96960699,153.22,153.18,6.5252]
[1745586758861,10.96960699,153.21,153.16,10.96960699]
[1745586759062,10.96960699,153.21,153.17,6.5255]
[1745586759261,17.49450699,153.2,153.17,6.5255]
[1745586759560,26.7,153.19,153.16,10.96960699]
[1745586759752,26.7,153.19,153.17,6.5255]
[1745586761265,26.7,153.19,153.15,10.96960699]
[1745586761463,37.66960699,153.19,153.14,14.76810699]
[1745586761964,26.7,153.19,153.14,3.7985]
[1745586762154,26.7,153.19,153.15,10.96960699]
[1745586762457,33.2253,153.19,153.16,6.5261]
[1745586763863,26.7,153.19,153.17,6.5259]
[1745586764064,26.7,153.19,153.16,10.96960699]
[1745586764366,26.7,153.19,153.18,6.5255]
[1745586771473,10.96960699,153.23,153.18,10.96960699]
[1745586771673,26.72,153.23,153.21,10.96960699]
[1745586772671,26.72,153.23,153.21,6.5242]
[1745586772872,37.68960699,153.23,153.19,10.96960699]
[1745586773170,10.96960699,153.22,153.18,10.96960699]
[1745586773371,17.49390699,153.21,153.17,10.96960699]
[1745586773566,10.96960699,153.19,153.15,10.96960699]
[1745586773764,37.68960699,153.19,153.17,6.5257]
[1745586774375,37.68960699,153.19,153.16,6.5262]
[1745586774572,37.68960699,153.19,153.15,10.96960699]
[1745586774874,26.72,153.19,153.14,3.7985]
[1745586775075,17.49510699,153.18,153.15,6.5267]
[1745586775375,6.5255,153.18,153.14,14.76810699]
[1745586775574,6.5255,153.18,153.15,6.5265]
[1745586775874,6.5255,153.18,153.14,14.76810699]
[1745586776273,10.96960699,153.18,153.13,10.96960699]
[1745586776774,17.49530699,153.18,153.15,6.5266]
[1745586776973,10.96960699,153.18,153.13,10.96960699]
[1745586777376,6.5266,153.16,153.12,10.96960699]
[1745586777872,10.96960699,153.17,153.14,6.5271]
[1745586778474,10.96960699,153.16,153.12,10.96960699]
[1745586778678,26.72,153.15,153.12,10.96960699]
[1745586778979,26.72,153.15,153.13,6.5273]
[1745586779177,26.72,153.15,153.12,10.96960699]
[1745586779580,26.72,153.15,153.13,6.5274]
[1745586780272,26.72,153.15,153.1,3.9034]
[1745586780273,26.72,153.17,153.14,10.96960699]
[1745586780478,26.72,153.22,153.16,10.96960699]
[1745586780670,26.72,153.22,153.19,10.96960699]
[1745586780869,10.96960699,153.2,153.16,10.96960699]
[1745586781072,10.96960699,153.21,153.17,10.96960699]
[1745586781273,10.96960699,153.21,153.11,26.72]
[1745586781469,37.68960699,153.22,153.18,10.96960699]
[1745586781874,37.68960699,153.22,153.2,6.5243]
[1745586782077,26.72,153.22,153.2,6.5243]
[1745586782481,26.72,153.22,153.19,17.49450699]
[1745586782782,33.2438,153.22,153.19,17.49450699]
[1745586783081,26.72,153.22,153.2,6.5246]
[1745586783380,33.2438,153.22,153.16,17.16071484]
[1745586783576,26.72,153.22,153.17,6.5255]
[1745586783881,6.5245,153.21,153.17,6.5255]
[1745586784286,6.5245,153.21,153.18,6.5255]
[1745586784480,26.72,153.22,153.16,17.16071484]
[1745586784677,26.72,153.25,153.18,17.16071484]
[1745586784879,26.72,153.25,153.2,17.16071484]
[1745586785284,26.72,153.25,153.24,6.5229]
[1745586785578,0.23294,153.27,153.2,17.16071484]
[1745586785783,0.23294,153.27,153.26,6.5221]
[1745586787285,0.23294,153.27,153.25,6.5224]
[1745586787480,0.23294,153.27,153.24,17.16071484]
[1745586787881,0.23294,153.27,153.26,6.5221]
[1745586788381,26.72,153.29,153.27,6.5215]
[1745586788581,26.72,153.29,153.24,17.16071484]
[1745586788885,26.72,153.29,153.26,6.5218]
[1745586789285,26.72,153.29,153.24,17.16071484]
[1745586789787,496.5,153.33,153.26,17.16071484]
[1745586789982,26.68,153.33,153.26,17.16071484]
[1745586790184,33.1994,153.33,153.26,17.16071484]
[1745586790385,26.68,153.33,153.26,17.16071484]
[1745586790589,6.5205,153.3,153.27,6.5215]
[1745586791086,6.5205,153.3,153.25,1.9281]
[1745586791389,6.5201,153.31,153.27,6.5214]
[1745586791687,26.68,153.33,153.26,17.16071484]
[1745586792889,33.1992,153.33,153.29,6.5204]
[1745586793189,26.68,153.33,153.28,17.16071484]
[1745586793989,33.1994,153.33,153.29,6.5205]
[1745586794487,6.5205,153.3,153.26,17.16071484]
[1745586794692,17.16071484,153.32,153.23,47.71281484]
[1745586794990,17.16071484,153.32,153.25,6.5224]
[1745586795189,6.5211,153.29,153.25,6.5224]
[1745586795692,6.5212,153.28,153.25,6.5224]
[1745586797690,17.16071484,153.3,153.23,3.8721]
[1745586797883,26.68,153.29,153.23,3.8721]
[1745586798490,6.5219,153.27,153.23,10.3951]
[1745586798692,6.5219,153.27,153.23,3.8721]
[1745586798989,26.68,153.29,153.23,3.8721]
[1745586799186,6.5215,153.28,153.25,6.5224]
[1745586799387,26.68,153.29,153.23,3.8721]
[1745586799790,6.5219,153.27,153.24,6.5226]
[1745586800893,6.5222,153.26,153.23,10.3953]
[1745586801289,26.68,153.29,153.23,3.8721]
[1745586801591,6.522,153.27,153.23,10.3952]
[1745586802093,6.522,153.27,153.24,6.5229]
[1745586803095,6.5222,153.26,153.23,10.3952]
[1745586803394,17.16071484,153.28,153.2,45.78401484]
[1745586803594,17.16071484,153.28,153.2,19.10401484]
[1745586803791,17.16071484,153.28,153.18,17.16071484]
[1745586804296,17.16071484,153.26,153.18,17.16071484]
[1745586804496,26.68,153.25,153.18,17.16071484]
[1745586804696,6.5236,153.23,153.2,6.5244]
[1745586804899,26.68,153.25,153.18,17.16071484]
[1745586805196,6.524,153.22,153.18,17.16071484]
[1745586805898,6.524,153.22,153.19,6.5248]
[1745586807001,6.5245,153.21,153.18,6.5253]
[1745586807296,26.68,153.21,153.16,3.9306]
[1745586807894,26.68,153.21,153.15,6.5264]
[1745586808097,6.5261,153.17,153.14,6.5269]
[1745586808295,26.68,153.21,153.12,45.71081484]
[1745586808699,26.68,153.21,153.14,6.5268]
[1745586808900,26.68,153.21,153.14,17.16071484]
[1745586809301,26.68,153.22,153.16,17.16071484]
[1745586809900,6.5243,153.21,153.16,17.16071484]
[1745586810100,26.68,153.22,153.14,17.16071484]
[1745586810291,43.84071484,153.22,153.14,17.16071484]
[1745586810500,6.5253,153.19,153.16,6.5261]
[1745586812900,43.84071484,153.22,153.16,6.5261]
[1745586812901,6.5255,153.18,153.16,6.5261]
[1745586813102,43.84071484,153.22,153.12,45.71081484]
[1745586813402,6.5262,153.17,153.12,45.71081484]
[1745586813701,6.5262,153.17,153.14,6.527]
[1745586813900,6.5262,153.17,153.12,19.03081484]
[1745586814505,6.5254,153.19,153.12,19.03081484]
[1745586814803,43.84071484,153.22,153.12,19.03081484]
[1745586815005,6.5257,153.18,153.15,6.5265]
[1745586815401,43.84071484,153.22,153.12,19.03081484]
[1745586815704,6.5261,153.17,153.14,6.527]
[1745586815900,43.84071484,153.22,153.12,19.03081484]
[1745586816704,26.68,153.22,153.18,6.5251]
[1745586816906,43.84071484,153.22,153.14,17.16071484]
[1745586817206,43.84071484,153.22,153.13,26.68]
[1745586817412,6.5257,153.18,153.15,6.5267]
[1745586817711,6.5257,153.18,153.13,26.68]
[1745586818011,6.5257,153.18,153.15,6.5265]
[1745586819011,6.526,153.17,153.15,6.5265]
[1745586819513,43.84071484,153.22,153.15,6.5265]
[1745586819709,6.5257,153.18,153.15,6.5265]
[1745586819908,43.84071484,153.22,153.15,6.5265]
[1745586820113,6.5261,153.17,153.14,6.527]
[1745586820414,43.84071484,153.22,153.12,17.16071484]
[1745586820616,6.5263,153.17,153.14,6.5268]
[1745586820911,0.4177,153.26,153.14,17.16071484]
[1745586821215,6.5245,153.21,153.16,17.16071484]
[1745586821511,6.5245,153.21,153.17,6.5255]
[1745586821814,6.5249,153.2,153.17,6.5255]
[1745586822517,6.5251,153.19,153.16,6.5262]
[1745586822717,17.16071484,153.22,153.15,4.0209]
[1745586822915,26.66,153.21,153.15,4.0209]
[1745586823115,26.66,153.21,153.17,6.5257]
[1745586823316,26.66,153.21,153.15,4.0209]
[1745586823616,33.1843,153.21,153.19,6.525]
[1745586823808,26.66,153.21,153.19,6.525]
[1745586824014,26.66,153.21,153.15,5.972]
[1745586824410,33.1844,153.21,153.19,6.525]
[1745586825715,33.1844,153.21,153.18,6.5253]
[1745586826116,6.5247,153.2,153.18,6.5253]
[1745586826912,33.1844,153.21,153.18,6.5253]
[1745586827411,6.5247,153.2,153.18,6.5253]
[1745586827608,26.66,153.21,153.16,17.16071484]
[1745586827820,26.66,153.21,153.15,5.972]
[1745586828019,6.5253,153.19,153.15,5.972]
[1745586828317,6.5253,153.19,153.17,6.5258]
[1745586829620,6.5248,153.2,153.17,6.5258]
[1745586829921,26.66,153.21,153.17,6.5258]
[1745586830116,6.525,153.2,153.15,5.972]
[1745586830420,26.66,153.21,153.15,5.972]
[1745586830721,6.5248,153.2,153.17,6.5256]
[1745586830912,17.16071484,153.24,153.15,4.0209]
[1745586831117,26.66,153.23,153.15,4.0209]
[1745586831322,17.16071484,153.22,153.15,4.0209]
[1745586831521,10.9873145,153.2,153.15,15.0082145]
[1745586831722,10.9873145,153.18,153.11,28.5902]
[1745586831911,6.5261,153.17,153.15,6.5265]
[1745586832434,17.5130145,153.18,153.16,6.5261]
[1745586832723,17.5130145,153.18,153.14,10.9873145]
[1745586833021,17.5130145,153.18,153.15,6.5267]
[1745586833619,33.1852,153.19,153.16,6.5263]
[1745586833920,26.66,153.19,153.16,17.5136145]
[1745586834323,6.5257,153.18,153.16,17.5136145]
[1745586834520,26.66,153.19,153.15,17.5138145]
[1745586834721,26.66,153.19,153.15,10.9873145]
[1745586835223,10.9873145,153.2,153.12,3.7593]
[1745586835624,26.66,153.22,153.15,10.9873145]
[1745586835825,10.9873145,153.2,153.16,10.9873145]
[1745586836123,10.9873145,153.21,153.16,10.9873145]
[1745586836329,6.5253,153.19,153.17,6.5258]
[1745586837026,6.5253,153.19,153.16,17.5134145]
[1745586837226,6.5253,153.19,153.16,6.5261]
[1745586837422,6.5253,153.19,153.15,10.9873145]
[1745586837628,6.5253,153.19,153.16,6.5259]
[1745586837825,6.5253,153.19,153.15,10.9873145]
[1745586838026,17.5121145,153.2,153.15,10.9873145]
[1745586838326,26.66,153.22,153.17,6.5257]
[1745586838528,10.9873145,153.2,153.17,6.5257]
[1745586838727,10.9873145,153.2,153.15,10.9873145]
[1745586838928,10.9873145,153.2,153.16,6.5261]
[1745586839126,6.5251,153.19,153.16,6.5261]
[1745586839329,10.9873145,153.2,153.18,6.5254]
[1745586839530,10.9873145,153.2,153.17,10.9873145]
[1745586839729,17.5123145,153.2,153.17,10.9873145]
[1745586839928,10.9873145,153.2,153.17,6.5256]
[1745586840329,10.9873145,153.21,153.16,17.5134145]
[1745586840531,10.9873145,153.19,153.12,3.7593]
[1745586840730,6.5261,153.17,153.13,10.9873145]
[1745586840924,6.5261,153.17,153.15,6.5267]
[1745586841228,6.526,153.17,153.15,6.5267]
[1745586841428,10.9873145,153.19,153.15,6.5267]
[1745586841630,10.9873145,153.18,153.12,3.7593]
[1745586841933,10.9873145,153.18,153.13,10.9873145]
[1745586842120,6.5262,153.17,153.13,6.5272]
[1745586842319,10.9873145,153.16,153.12,14.7466145]
[1745586842523,10.9873145,153.16,153.13,6.5275]
[1745586842930,10.9873145,153.16,153.12,14.7466145]
[1745586843129,6.5263,153.16,153.13,6.5274]
[1745586843323,6.5263,153.16,153.13,17.5147145]
[1745586843527,26.66,153.18,153.13,17.5147145]
[1745586843725,6.5263,153.17,153.14,17.5143145]
[1745586844333,10.9873145,153.15,153.05,10.9873145]
[1745586844528,10.9873145,153.09,153.05,10.9873145]
[1745586844732,10.9873145,153.11,153.05,10.9873145]
[1745586845031,26.66,153.13,153.09,10.9873145]
[1745586845431,6.5282,153.12,153.09,10.9873145]
[1745586846927,26.66,153.13,153.09,6.5291]
[1745586847132,26.66,153.13,153.1,10.9873145]
[1745586847428,6.5281,153.12,153.1,10.9873145]
[1745586847630,26.66,153.13,153.1,10.9873145]
[1745586847835,33.1879,153.13,153.1,10.9873145]
[1745586848027,26.66,153.13,153.1,10.9873145]
[1745586848330,26.66,153.13,153.04,26.66]
[1745586848331,37.6273145,153.16,153.12,10.9873145]
[1745586848528,6.5269,153.15,153.12,10.9873145]
[1745586849327,37.6273145,153.16,153.12,10.9873145]
[1745586849837,26.64,153.16,153.14,10.9873145]
[1745586850028,26.64,153.16,153.14,17.5145145]
[1745586850934,6.5253,153.19,153.14,10.9873145]
[1745586851238,37.6273145,153.22,153.16,10.9873145]
[1745586851424,4.54571978,153.21,153.16,17.5135145]
[1745586851625,10.9873145,153.2,153.15,2.0475]
[1745586851822,10.9873145,153.2,153.14,10.9873145]
[1745586852024,6.526,153.17,153.14,17.5142145]
[1745586852730,6.5264,153.16,153.14,10.9873145]
[1745586852930,37.6273145,153.18,153.14,10.9873145]
[1745586853334,6.5262,153.17,153.11,17.17163582]
[1745586853534,26.64,153.18,153.11,17.17163582]
[1745586854033,6.5266,153.16,153.12,6.528]
[1745586855837,26.64,153.18,153.11,17.17163582]
[1745586856132,26.64,153.18,153.13,17.17163582]
[1745586856435,6.5261,153.17,153.14,6.527]
[1745586856734,6.5261,153.17,153.13,17.17163582]
[1745586856735,26.64,153.18,153.13,17.17163582]
[1745586857039,26.64,153.2,153.13,17.17163582]
[1745586857234,26.64,153.2,153.15,6.5267]
[1745586857537,26.64,153.2,153.15,17.17163582]
[1745586857738,26.64,153.2,153.17,6.5257]
[1745586858036,26.64,153.2,153.15,17.17163582]
[1745586858238,26.64,153.2,153.16,6.5261]
[1745586858434,26.64,153.2,153.15,17.17163582]
[1745586858829,33.1646,153.2,153.15,6.5266]
[1745586859032,26.64,153.2,153.15,6.5266]
[1745586859739,26.64,153.2,153.16,6.5262]
[1745586861235,33.1647,153.2,153.15,6.5266]
[1745586861938,6.5253,153.19,153.13,17.17163582]
[1745586862140,26.64,153.2,153.13,17.17163582]
[1745586862740,26.64,153.2,153.15,17.17163582]
[1745586863143,26.64,153.2,153.18,6.5252]
[1745586863748,26.64,153.2,153.15,17.17163582]
[1745586864345,6.524,153.22,153.17,17.17163582]
[1745586864346,26.64,153.22,153.17,17.17163582]
[1745586864743,6.5244,153.21,153.17,17.17163582]
[1745586865046,6.5244,153.21,153.18,6.5252]
[1745586865344,6.525,153.2,153.15,17.17163582]
[1745586865548,26.64,153.22,153.15,17.17163582]
[1745586865847,33.1635,153.23,153.17,17.17163582]
[1745586866146,33.1635,153.23,153.2,6.5244]
[1745586868146,6.5238,153.22,153.17,17.17163582]
[1745586868845,26.64,153.23,153.17,17.17163582]
[1745586869545,26.64,153.23,153.19,17.17163582]
[1745586869751,26.64,153.26,153.19,17.17163582]
[1745586870447,26.64,153.26,153.21,17.17163582]
[1745586870650,6.5224,153.26,153.21,17.17163582]
[1745586870843,26.64,153.27,153.21,17.17163582]
[1745586871248,6.5228,153.25,153.21,17.17163582]
[1745586871852,6.5229,153.24,153.21,17.17163582]
[1745586872261,26.64,153.27,153.21,17.17163582]
[1745586872754,26.64,153.27,153.23,17.17163582]
[1745586873449,6.5217,153.27,153.23,17.17163582]
[1745586873653,26.64,153.29,153.23,17.17163582]
[1745586874152,6.522,153.27,153.23,17.17163582]
[1745586876056,6.5221,153.26,153.23,17.17163582]
[1745586876557,6.5226,153.25,153.23,17.17163582]
[1745586877357,6.5226,153.25,153.18,5.9275]
[1745586877358,6.5226,153.25,153.24,10.97386776]
[1745586877658,6.5222,153.26,153.24,10.97386776]
[1745586877853,6.5222,153.26,153.25,10.97386776]
[1745586878060,496.46,153.32,153.25,10.97386776]
[1745586878255,6.5204,153.3,153.29,10.97386776]
[1745586878454,26.64,153.32,153.28,10.97386776]
[1745586878655,10.97386776,153.3,153.26,10.97386776]
[1745586878851,10.97386776,153.29,153.25,10.97386776]
[1745586879055,26.64,153.32,153.27,10.97386776]
[1745586879255,6.5212,153.28,153.27,10.97386776]
[1745586879455,10.97386776,153.31,153.26,10.97386776]
[1745586880159,6.5216,153.27,153.26,10.97386776]
[1745586882966,6.5225,153.26,153.25,10.97386776]
[1745586883767,6.5218,153.27,153.25,10.97386776]
[1745586883967,10.97386776,153.3,153.25,10.97386776]
[1745586884266,10.97386776,153.29,153.25,10.97386776]
[1745586884467,6.5221,153.26,153.25,10.97386776]
[1745586885662,10.97386776,153.3,153.25,10.97386776]
[1745586885965,37.61386776,153.32,153.26,10.97386776]
[1745586886166,37.61386776,153.32,153.27,10.97386776]
[1745586886360,6.5212,153.28,153.27,10.97386776]
[1745586886562,10.97386776,153.31,153.26,10.97386776]
[1745586886758,26.64,153.32,153.27,10.97386776]
[1745586886961,37.61386776,153.32,153.27,10.97386776]
[1745586887270,6.5215,153.28,153.27,10.97386776]
[1745586887467,37.61386776,153.32,153.26,10.97386776]
[1745586887666,10.97386776,153.31,153.26,10.97386776]
[1745586888370,6.5215,153.28,153.26,10.97386776]
[1745586891972,6.5216,153.27,153.26,10.97386776]
[1745586892974,6.5206,153.3,153.26,17.49596776]
[1745586893170,6.5206,153.3,153.29,10.97386776]
[1745586893773,6.5202,153.31,153.29,10.97386776]
[1745586894176,6.5197,153.32,153.29,10.97386776]
[1745586894875,6.5202,153.31,153.29,10.97386776]
[1745586895174,10.97386776,153.34,153.29,10.97386776]
[1745586895875,6.5198,153.32,153.29,10.97386776]
[1745586896377,6.52,153.31,153.29,10.97386776]
[1745586896780,10.97386776,153.32,153.27,10.97386776]
[1745586896975,6.5206,153.3,153.27,10.97386776]
[1745586897171,10.97386776,153.31,153.27,10.97386776]
[1745586897376,10.97386776,153.3,153.26,10.97386776]
[1745586897576,6.5215,153.28,153.25,10.97386776]
[1745586898076,6.5215,153.28,153.25,17.49636776]
[1745586898377,10.97386776,153.29,153.25,17.49636776]
[1745586898578,10.97386776,153.29,153.25,6.5225]
[1745586898975,6.5216,153.28,153.25,6.5225]
[1745586899278,10.97386776,153.29,153.25,6.5225]
[1745586899978,6.5213,153.28,153.25,6.5225]
[1745586900575,6.5213,153.28,153.24,16.71036776]
[1745586900879,6.5213,153.28,153.25,10.97386776]
[1745586901079,6.5213,153.28,153.25,17.49616776]
[1745586901481,6.5218,153.27,153.24,5.7365]
[1745586901680,6.5218,153.27,153.24,23.23306776]
[1745586901881,10.97386776,153.29,153.24,23.23306776]
[1745586902081,10.97386776,153.26,153.21,6.524]
[1745586902380,10.97386776,153.25,153.21,10.97386776]
[1745586902583,6.5227,153.25,153.22,6.5235]
[1745586902880,6.5227,153.25,153.22,10.97386776]
[1745586903078,17.49576776,153.27,153.24,6.5229]
[1745586903284,10.97386776,153.3,153.26,10.97386776]
[1745586903581,37.57386776,153.31,153.26,10.97386776]
[1745586903878,10.97386776,153.3,153.26,10.97386776]
[1745586904076,10.97386776,153.3,153.25,10.97386776]
[1745586904278,6.5216,153.28,153.25,17.49616776]
[1745586904474,10.97386776,153.28,153.23,10.97386776]
[1745586904673,6.5224,153.26,153.23,17.49696776]
[1745586904876,10.97386776,153.26,153.22,10.97386776]
[1745586905179,6.5222,153.26,153.23,6.523]
[1745586905381,10.97386776,153.27,153.23,10.97386776]
[1745586905783,17.49586776,153.27,153.24,6.5227]
[1745586906682,6.5221,153.26,153.23,17.49696776]
[1745586906985,10.97386776,153.27,153.23,10.97386776]
[1745586907784,10.97386776,153.27,153.23,17.49696776]
[1745586907980,10.97386776,153.26,153.21,10.97386776]
[1745586908284,10.97386776,153.25,153.21,6.524]
[1745586908880,10.97386776,153.25,153.2,17.49826776]
[1745586909184,10.97386776,153.23,153.19,3.9413]
[1745586909382,6.5241,153.22,153.19,3.9413]
[1745586909583,10.97386776,153.23,153.19,8.5611]
[1745586909785,10.97386776,153.22,153.19,8.5611]
[1745586910484,10.97386776,153.22,153.17,37.55386776]
[1745586910883,10.97386776,153.22,153.17,10.97386776]
[1745586911184,37.55386776,153.23,153.19,10.97386776]
[1745586911685,6.5245,153.21,153.19,10.97386776]
[1745586911985,10.97386776,153.22,153.18,10.97386776]
[1745586912286,6.5249,153.2,153.18,10.97386776]
[1745586912485,6.5249,153.2,153.17,17.49956776]
[1745586912787,6.5249,153.2,153.17,10.97386776]
[1745586912982,10.97386776,153.22,153.19,10.97386776]
[1745586913285,26.58,153.23,153.19,10.97386776]
[1745586913485,6.5245,153.21,153.18,10.97386776]
[1745586914183,6.5248,153.2,153.17,10.97386776]
[1745586914384,10.97386776,153.21,153.17,10.97386776]
[1745586914586,6.5255,153.18,153.16,10.97386776]
[1745586916288,6.5252,153.19,153.16,17.50016776]
[1745586917389,10.97386776,153.2,153.16,17.50016776]
[1745586917688,6.5254,153.19,153.16,17.50016776]
[1745586918086,6.5254,153.19,153.17,6.5258]
[1745586918285,10.97386776,153.23,153.18,10.97386776]
[1745586918588,26.58,153.23,153.19,10.97386776]
[1745586918792,6.524,153.22,153.19,17.49866776]
[1745586919183,6.5236,153.23,153.2,17.49816776]
[1745586919388,26.58,153.25,153.22,10.97386776]
[1745586919587,10.97386776,153.27,153.23,10.97386776]
[1745586920087,6.5227,153.25,153.23,10.97386776]
[1745586920287,10.97386776,153.27,153.23,10.97386776]
[1745586920586,6.5229,153.24,153.23,10.97386776]
[1745586921587,6.5228,153.25,153.23,10.97386776]
[1745586922090,10.97386776,153.27,153.23,10.97386776]
[1745586922788,37.55386776,153.28,153.24,10.97386776]
[1745586922990,26.58,153.28,153.26,10.97386776]
[1745586923192,469.58,153.3,153.27,10.97386776]
[1745586923693,10.97386776,153.28,153.23,10.97386776]
[1745586924690,37.55386776,153.27,153.22,10.97386776]
[1745586925087,6.5233,153.23,153.22,10.97386776]
[1745586925587,37.55386776,153.27,153.22,10.97386776]
[1745586925889,6.5231,153.24,153.22,10.97386776]
[1745586927196,6.5233,153.23,153.22,10.97386776]
[1745586931097,6.5238,153.22,153.21,10.97386776]
[1745586931592,10.97386776,153.25,153.2,13.00226776]
[1745586931797,6.5242,153.21,153.2,13.00226776]
[1745586932392,10.97386776,153.21,153.15,26.58]
[1745586932598,10.97386776,153.21,153.17,10.97386776]
[1745586932897,6.5247,153.2,153.19,10.97386776]
[1745586934397,15.5071,153.29,153.19,10.97386776]
[1745586934600,37.55386776,153.28,153.23,10.97386776]
[1745586934901,6.5221,153.26,153.25,10.97386776]
[1745586935198,26.58,153.28,153.24,10.97386776]
[1745586935599,6.5225,153.25,153.24,10.97386776]
[1745586936000,37.55386776,153.28,153.23,10.97386776]
[1745586936300,6.5229,153.24,153.23,10.97386776]
[1745586937002,13.0385,153.33,153.23,10.97386776]
[1745586937196,10.97386776,153.3,153.25,10.97386776]
[1745586937692,10.97386776,153.29,153.24,10.97386776]
[1745586937895,10.97386776,153.28,153.24,10.97386776]
[1745586938095,6.5225,153.25,153.24,10.97386776]
[1745586939205,10.97386776,153.27,153.23,10.97386776]
[1745586939605,6.5229,153.25,153.23,10.97386776]
[1745586939795,10.97386776,153.27,153.23,10.97386776]
[1745586940102,6.5229,153.24,153.23,10.97386776]
[1745586940305,10.97386776,153.28,153.23,10.97386776]
[1745586940501,10.97386776,153.28,153.24,10.97386776]
[1745586941104,10.97386776,153.3,153.26,10.97386776]
[1745586941299,10.97386776,153.3,153.2,5.7768]
[1745586941300,37.55386776,153.31,153.27,10.97386776]
[1745586941502,6.5216,153.28,153.27,10.97386776]
[1745586941804,26.58,153.31,153.27,10.97386776]
[1745586942004,26.58,153.31,153.28,10.97386776]
[1745586942204,26.58,153.31,153.27,10.97386776]
[1745586942705,6.5212,153.28,153.27,10.97386776]
[1745586943900,6.5209,153.29,153.27,10.97386776]
[1745586944103,26.58,153.31,153.27,10.97386776]
[1745586945499,26.54,153.35,153.28,10.97386776]
[1745586945705,10.97386776,153.36,153.31,10.97386776]
[1745586946307,6.5195,153.32,153.31,10.97386776]
[1745586947207,6.5199,153.31,153.3,10.97386776]
[1745586948105,6.5204,153.3,153.28,5.8778]
[1745586948405,10.97386776,153.35,153.29,10.97386776]
[1745586948605,10.97386776,153.35,153.31,10.97386776]
[1745586948807,6.5203,153.31,153.3,10.97386776]
[1745586952308,6.5204,153.3,153.28,5.8778]
[1745586952505,6.5204,153.3,153.29,10.97386776]
[1745586952805,10.97386776,153.35,153.29,10.97386776]
[1745586953005,10.97386776,153.35,153.31,10.97386776]
[1745586953612,6.5195,153.32,153.31,10.97386776]
[1745586956310,6.5194,153.33,153.31,10.97386776]
[1745586956510,6.5194,153.33,153.32,10.97386776]
[1745586956710,26.54,153.37,153.32,10.97386776]
[1745586957010,6.5188,153.34,153.33,10.97386776]
[1745586958111,6.5184,153.35,153.33,10.97386776]
[1745586958316,6.5184,153.35,153.34,10.97386776]
[1745586958511,10.97386776,153.38,153.33,10.97386776]
[1745586958911,6.5187,153.34,153.33,10.97386776]
[1745586959715,6.5187,153.34,153.32,10.97386776]
[1745586960215,6.5187,153.34,153.32,17.49306776]
[1745586962318,6.5185,153.35,153.32,17.49306776]
[1745586962516,10.97386776,153.37,153.32,17.49306776]
[1745586963319,10.97386776,153.37,153.34,6.5186]
[1745586963518,10.97386776,153.38,153.34,17.49246776]
[1745586963715,10.97386776,153.41,153.37,10.97386776]
[1745586964018,6.517,153.38,153.37,10.97386776]
[1745586964217,37.49386776,153.41,153.36,10.97386776]
[1745586964419,37.49386776,153.41,153.37,10.97386776]
[1745586965420,26.52,153.41,153.37,10.97386776]
[1745586965622,6.5165,153.39,153.37,10.97386776]